bitfinex/quotes_BTCUSD_20220120
["timestamp","ask_amount","ask_price","bid_price","bid_amount"]
[1642685945057,6.01e-06,42385.0,42383.0,0.39071992]
[1642685945256,6.01e-06,42385.0,42383.0,0.00128232]
[1642685945658,0.0001719,42392.0,42389.0,0.3544949]
[1642685945857,0.0001719,42392.0,42390.0,0.22276615]
[1642685946056,0.00015471,42391.0,42390.0,0.22276615]
[1642685946256,0.00015471,42391.0,42390.0,0.55753444]
[1642685946860,0.00015471,42391.0,42390.0,1.50453133]
[1642685947098,0.17100962,42393.0,42391.0,1.57158276]
[1642685947301,0.1401,42393.0,42392.0,0.34284776]
[1642685947598,0.0031,42402.0,42397.0,0.00129571]
[1642685947599,0.18685946,42400.0,42397.0,0.00129571]
[1642685947796,0.18685946,42400.0,42399.0,1.45415808]
[1642685947997,0.18685946,42400.0,42399.0,1.82387244]
[1642685948408,0.0031,42402.0,42399.0,2.05783586]
[1642685948598,0.00355077,42402.0,42400.0,0.00127691]
[1642685948798,0.0001719,42401.0,42400.0,0.00127691]
[1642685951438,0.0001719,42401.0,42400.0,0.00127873]
[1642685952838,0.0021,42406.0,42401.0,1.42692952]
[1642685953039,0.0021,42406.0,42401.0,1.49408952]
[1642685953239,8.76e-06,42405.0,42403.0,0.00120853]
[1642685953638,8.76e-06,42405.0,42404.0,0.35696561]
[1642685953841,0.01,42409.0,42404.0,0.41593661]
[1642685954042,0.01,42409.0,42408.0,1.43747737]
[1642685954240,0.01,42409.0,42408.0,1.43375819]
[1642685954440,0.01006876,42409.0,42408.0,1.43375819]
[1642685954891,0.01006876,42409.0,42408.0,1.52072075]
[1642685955292,0.01006876,42409.0,42408.0,1.33696256]
[1642685955690,0.16006876,42409.0,42408.0,1.33696256]
[1642685956892,0.01006876,42409.0,42408.0,1.33696256]
[1642685957093,0.01006876,42409.0,42408.0,1.25]
[1642685957296,0.16006876,42409.0,42408.0,1.25]
[1642685958743,0.15506876,42409.0,42404.0,0.35696561]
[1642685958944,0.01006876,42409.0,42400.0,0.37267976]
[1642685959139,0.1449,42404.0,42400.0,0.37039086]
[1642685959338,0.1449,42404.0,42398.0,0.11797514]
[1642685959339,0.1449,42404.0,42401.0,6.876e-05]
[1642685959539,0.1449,42404.0,42401.0,0.05905781]
[1642685959738,0.01051682,42409.0,42402.0,0.44621885]
[1642685959946,0.01051682,42409.0,42407.0,0.31755778]
[1642685960142,0.1449,42408.0,42407.0,0.31755778]
[1642685960540,0.01006876,42409.0,42407.0,0.31755778]
[1642685960742,0.01006876,42409.0,42408.0,1.61288955]
[1642685960944,0.002,42414.0,42409.0,0.01006]
[1642685961147,0.002,42414.0,42410.0,0.29077415]
[1642685961347,0.01,42419.0,42411.0,1.6321316]
[1642685961348,8.76e-06,42419.0,42411.0,1.6321316]
[1642685961544,8.76e-06,42419.0,42417.0,0.19763389]
[1642685961745,8.595e-05,42418.0,42417.0,0.19763389]
[1642685961945,8.595e-05,42418.0,42417.0,0.47139134]
[1642685962187,8.595e-05,42418.0,42417.0,0.65406607]
[1642685962594,8.595e-05,42418.0,42417.0,1.63030862]
[1642685962988,0.04269647,42418.0,42417.0,1.63130862]
[1642685963188,0.15008595,42418.0,42417.0,1.63130862]
[1642685963387,0.15008595,42418.0,42417.0,1.57234883]
[1642685963588,8.595e-05,42418.0,42417.0,1.57234883]
[1642685963989,0.15008595,42418.0,42417.0,1.57234883]
[1642685964387,8.595e-05,42418.0,42417.0,1.57234883]
[1642685965388,8.76e-06,42419.0,42418.0,1.25]
[1642685965852,1.335e-05,42420.0,42418.0,1.2512585]
[1642685966051,1.335e-05,42420.0,42418.0,1.3102125]
[1642685966255,0.001,42424.0,42418.0,1.3754825]
[1642685966452,0.011,42429.0,42421.0,1.25]
[1642685966756,0.011,42429.0,42422.0,1.30895099]
[1642685967051,6.876e-05,42427.0,42422.0,1.30895099]
[1642685967251,0.1,42434.0,42429.0,0.2421365]
[1642685967252,0.058957,42433.0,42429.0,0.2421365]
[1642685967451,0.058957,42433.0,42423.0,1.25006876]
[1642685967649,0.001,42435.0,42427.0,0.31637649]
[1642685967650,8.595e-05,42432.0,42427.0,0.31637649]
[1642685967856,8.595e-05,42432.0,42427.0,0.37532779]
[1642685968054,6.876e-05,42431.0,42427.0,0.37532779]
[1642685968248,6.876e-05,42431.0,42427.0,0.31637649]
[1642685968650,6.876e-05,42431.0,42426.0,0.22642752]
[1642685968852,6.876e-05,42431.0,42423.0,6.876e-05]
[1642685968853,0.05902976,42431.0,42423.0,6.876e-05]
[1642685969054,0.10218918,42430.0,42423.0,6.876e-05]
[1642685969252,0.10569782,42429.0,42423.0,6.876e-05]
[1642685969451,0.10569782,42429.0,42418.0,0.00015471]
[1642685969687,0.10569782,42429.0,42419.0,0.32999217]
[1642685970089,0.10569782,42429.0,42420.0,0.00012033]
[1642685970291,0.00043203,42426.0,42420.0,0.33052975]
[1642685970497,0.00043203,42426.0,42424.0,0.22479188]
[1642685971390,0.00043204,42427.0,42426.0,0.32433117]
[1642685971590,0.00043204,42427.0,42424.0,0.22479188]
[1642685972393,0.0603135,42431.0,42422.0,0.05896075]
[1642685972592,0.0603135,42431.0,42421.0,0.05906414]
[1642685972593,0.00043204,42428.0,42421.0,0.00010314]
[1642685972790,0.00043204,42428.0,42423.0,6.876e-05]
[1642685972997,0.00043204,42428.0,42420.0,0.00012033]
[1642685973194,0.15,42422.0,42414.0,0.11913583]
[1642685973440,0.00012033,42427.0,42420.0,0.2758009]
[1642685973842,0.00043199,42422.0,42420.0,0.2758009]
[1642685974139,0.15043199,42422.0,42420.0,0.64233349]
[1642685974340,0.15043199,42422.0,42420.0,0.36653259]
[1642685974940,0.46884596,42429.0,42419.0,0.11791635]
[1642685975143,0.15,42420.0,42419.0,0.11791635]
[1642685975839,0.15,42420.0,42418.0,0.22431851]
[1642685976042,0.46857314,42426.0,42417.0,0.001]
[1642685976245,0.15,42419.0,42417.0,0.001]
[1642685976442,0.058981,42418.0,42417.0,0.001]
[1642685976642,0.15,42419.0,42417.0,0.001]
[1642685976845,0.10241309,42418.0,42417.0,0.001]
[1642685977098,0.1,42418.0,42417.0,0.19498053]
[1642685977298,0.1,42418.0,42417.0,0.94872295]
[1642685977299,0.0001,42418.0,42417.0,0.94872295]
[1642685977497,0.00043196,42422.0,42417.0,0.57586853]
[1642685977695,1.96e-06,42422.0,42421.0,0.0012836]
[1642685977993,1.96e-06,42422.0,42421.0,0.67232816]
[1642685978495,6.876e-05,42424.0,42421.0,0.380888]
[1642685978692,6.876e-05,42424.0,42420.0,0.1768595]
[1642685979295,6.876e-05,42424.0,42423.0,1.52424376]
[1642685979797,0.15006876,42424.0,42423.0,1.52424376]
[1642685980193,6.876e-05,42424.0,42423.0,1.52424376]
[1642685980696,6.876e-05,42424.0,42423.0,1.56269788]
[1642685980944,6.876e-05,42424.0,42423.0,1.94358588]
[1642685981344,0.001,42435.0,42433.0,0.33680506]
[1642685981544,0.001,42435.0,42433.0,0.39574986]
[1642685981748,0.001,42435.0,42433.0,0.64076765]
[1642685982742,0.001,42435.0,42434.0,0.33398937]
[1642685982943,0.00242953,42436.0,42434.0,0.33398937]
[1642685983142,0.00018909,42435.0,42433.0,0.64076765]
[1642685983547,0.0001719,42434.0,42433.0,0.64076765]
[1642685983742,0.0001719,42434.0,42433.0,0.97997579]
[1642685984043,0.0001719,42434.0,42433.0,0.64076765]
[1642685984244,0.1501719,42434.0,42433.0,0.64076765]
[1642685984443,0.1501719,42434.0,42433.0,1.74076765]
[1642685984890,0.1501719,42434.0,42433.0,1.49574986]
[1642685985092,0.1501719,42434.0,42433.0,1.1]
[1642685985594,0.1501719,42434.0,42424.0,2.3681]
[1642685985791,0.1501719,42434.0,42424.0,0.9629]
[1642685985792,0.0001719,42434.0,42424.0,0.9629]
[1642685985990,0.15,42432.0,42425.0,0.30635801]
[1642685986194,0.00015471,42433.0,42425.0,0.28135801]
[1642685986390,0.0473,42434.0,42424.0,0.9629]
[1642685986391,0.00012033,42431.0,42424.0,0.9629]
[1642685986589,0.00013752,42432.0,42424.0,0.9629]
[1642685986790,0.15,42425.0,42424.0,0.025]
[1642685987592,0.00042948,42430.0,42424.0,0.025]
[1642685987793,0.15,42428.0,42424.0,0.025]
[1642685988193,0.15,42427.0,42424.0,0.025]
[1642685988452,0.058975,42426.0,42424.0,0.025]
[1642685988643,0.15,42425.0,42424.0,0.025]
[1642685991753,0.1973,42425.0,42424.0,0.025]
[1642685992404,0.2972,42425.0,42424.0,0.025]
[1642685993009,1.43198959,42425.0,42424.0,0.0001]
[1642685993211,1.756,42424.0,42417.0,0.001]
[1642685993411,0.00126403,42418.0,42399.0,0.36769834]
[1642685993613,0.00126403,42418.0,42394.0,0.36465098]
[1642685993614,0.00121192,42406.0,42394.0,0.36465098]
[1642685993809,0.0473,42405.0,42394.0,0.36465098]
[1642685994030,0.0473,42405.0,42395.0,0.00049851]
[1642685994210,0.00128597,42401.0,42393.0,0.33956739]
[1642685994408,0.05866951,42399.0,42393.0,0.33956739]
[1642685994708,0.0939457,42398.0,42393.0,0.33956739]
[1642685995307,0.0939457,42398.0,42392.0,0.05900413]
[1642685995610,0.0939457,42398.0,42393.0,0.00084577]
[1642685995842,0.15,42394.0,42393.0,0.00084577]
[1642685996046,0.1973,42394.0,42393.0,0.00084577]
[1642685996243,0.1973,42394.0,42393.0,0.80084577]
[1642685996445,0.1973,42394.0,42393.0,0.8]
[1642685997245,0.1973,42394.0,42393.0,1.251]
[1642685997645,0.1973,42394.0,42393.0,0.801]
[1642685998045,0.2973,42394.0,42393.0,0.801]
[1642685998247,0.1473,42394.0,42393.0,0.801]
[1642685999167,0.1473,42394.0,42393.0,1.251]
[1642685999351,0.0973,42394.0,42393.0,1.251]
[1642685999591,0.1973,42394.0,42393.0,1.251]
[1642686000388,0.1973,42394.0,42393.0,1.236]
[1642686000591,8.595e-05,42400.0,42394.0,0.10628897]
[1642686000790,8.595e-05,42400.0,42395.0,0.21924746]
[1642686000993,8.76e-06,42399.0,42395.0,0.21924746]
[1642686001291,0.36611282,42413.0,42396.0,0.380888]
[1642686001503,0.0999,42415.0,42400.0,0.058976]
[1642686001697,0.0999,42415.0,42413.0,0.19785218]
[1642686001902,0.0999,42415.0,42413.0,0.26677218]
[1642686002092,0.0999,42415.0,42413.0,0.6337323]
[1642686002293,0.09911,42415.0,42413.0,0.26677218]
[1642686003191,0.14911,42415.0,42413.0,0.19785218]
[1642686003434,0.14911,42415.0,42413.0,0.52436739]
[1642686003636,0.14911,42415.0,42413.0,0.19785218]
[1642686004241,0.14911,42415.0,42413.0,0.25681575]
[1642686006844,0.09911,42415.0,42413.0,0.25681575]
[1642686009191,0.19911,42415.0,42413.0,0.25681575]
[1642686009791,0.14911,42415.0,42413.0,0.25681575]
[1642686010839,0.14911,42415.0,42413.0,0.05896357]
[1642686011042,0.14911,42415.0,42412.0,0.00108319]
[1642686011043,0.37095378,42415.0,42412.0,0.00108319]
[1642686011241,0.09533922,42413.0,42412.0,0.00108319]
[1642686011644,0.17071318,42413.0,42412.0,0.00108319]
[1642686011843,0.26773846,42413.0,42412.0,0.00108319]
[1642686012045,0.26773846,42413.0,42406.0,0.11795357]
[1642686012241,0.17071318,42413.0,42412.0,0.8409216]
[1642686012443,0.1496905,42414.0,42412.0,0.8409216]
[1642686012640,0.1204762,42413.0,42412.0,0.8409216]
[1642686013039,0.05,42414.0,42412.0,1.19620479]
[1642686013239,0.05,42414.0,42412.0,0.8409216]
[1642686013441,0.05,42414.0,42412.0,0.65]
[1642686013840,0.12047741,42413.0,42412.0,0.65]
[1642686014898,0.2226399,42413.0,42412.0,0.65]
[1642686015198,0.12047741,42413.0,42412.0,0.63]
[1642686015597,0.17047741,42413.0,42412.0,0.63]
[1642686015798,0.12047741,42413.0,42412.0,0.63]
[1642686016098,0.2,42414.0,42412.0,0.63]
[1642686016699,0.12047587,42413.0,42412.0,0.63]
[1642686018103,0.12047587,42413.0,42412.0,0.98]
[1642686019044,0.12047587,42413.0,42412.0,0.63]
[1642686021748,0.17047587,42413.0,42412.0,0.63]
[1642686024694,0.05,42413.0,42412.0,0.63]
[1642686024894,0.17047659,42413.0,42412.0,0.63]
[1642686025304,0.26176359,42413.0,42412.0,0.63]
[1642686025940,0.26176359,42413.0,42412.0,0.88]
[1642686026542,0.26176359,42413.0,42412.0,0.63]
[1642686027947,0.17047659,42413.0,42412.0,0.63]
[1642686029446,0.17047659,42413.0,42410.0,0.00108326]
[1642686029898,0.15,42411.0,42410.0,0.00108326]
[1642686030098,0.15,42411.0,42408.0,0.184615]
[1642686030099,0.2,42411.0,42408.0,0.184615]
[1642686030301,0.32068287,42411.0,42409.0,0.00108328]
[1642686030506,0.12066568,42410.0,42409.0,0.00108328]
[1642686030799,0.27066568,42410.0,42409.0,1.00108328]
[1642686030999,0.32066568,42410.0,42409.0,1.00108328]
[1642686031198,0.32066568,42410.0,42409.0,1.0]
[1642686033443,0.42066568,42410.0,42409.0,1.0]
[1642686033641,0.32066568,42410.0,42409.0,1.0]
[1642686034442,0.33066568,42410.0,42409.0,1.0]
[1642686034845,0.33066568,42410.0,42409.0,1.25]
[1642686035243,0.21018909,42410.0,42409.0,1.25]
[1642686035742,0.06018909,42410.0,42409.0,1.53381695]
[1642686036142,0.13067599,42410.0,42409.0,1.53381695]
[1642686036343,0.06018909,42410.0,42409.0,1.53381695]
[1642686036543,0.01018909,42410.0,42409.0,1.0]
[1642686036745,0.28067604,42410.0,42409.0,1.0]
[1642686037196,0.28067604,42410.0,42406.0,0.11794626]
[1642686037197,0.33067604,42410.0,42406.0,0.11794626]
[1642686037404,0.06018909,42410.0,42407.0,0.00108331]
[1642686037598,0.0001719,42409.0,42407.0,0.00108331]
[1642686037794,0.12066457,42409.0,42398.0,0.3275139]
[1642686038101,0.09448108,42407.0,42398.0,0.3275139]
[1642686038295,0.15,42399.0,42398.0,0.51450809]
[1642686038694,0.15,42399.0,42398.0,0.18699419]
[1642686039309,0.15,42399.0,42398.0,0.56788219]
[1642686039897,0.2,42399.0,42398.0,0.56788219]
[1642686040097,0.15,42399.0,42398.0,0.18699419]
[1642686040945,0.15,42399.0,42398.0,0.16399419]
[1642686042946,0.147,42399.0,42398.0,0.16399419]
[1642686043147,0.147,42399.0,42398.0,0.54488219]
[1642686043352,0.144,42399.0,42398.0,0.54488219]
[1642686043546,0.141,42399.0,42398.0,0.54488219]
[1642686043745,0.138,42399.0,42398.0,0.54488219]
[1642686043947,0.135,42399.0,42398.0,0.54488219]
[1642686044147,0.132,42399.0,42398.0,0.54488219]
[1642686044349,0.129,42399.0,42398.0,0.54488219]
[1642686045402,0.09681837,42405.0,42398.0,0.16399419]
[1642686045602,0.129,42399.0,42398.0,0.16399419]
[1642686046609,8.595e-05,42404.0,42398.0,0.86932049]
[1642686046805,8.595e-05,42404.0,42400.0,0.058982]
[1642686047007,6.876e-05,42403.0,42400.0,0.058982]
[1642686047404,0.129,42403.0,42401.0,0.380888]
[1642686047605,0.129,42403.0,42400.0,0.058982]
[1642686047906,0.129,42402.0,42400.0,0.058982]
[1642686048651,0.129,42402.0,42401.0,0.66027984]
[1642686049249,0.1287,42402.0,42401.0,0.66027984]
[1642686049645,0.1284,42402.0,42401.0,0.66027984]
[1642686050447,0.1284,42402.0,42401.0,0.380888]
[1642686050647,0.1284,42402.0,42400.0,0.058982]
[1642686051153,0.1284,42402.0,42399.0,0.28442966]
[1642686051548,0.1284,42402.0,42400.0,0.31739672]
[1642686052234,0.11231477,42423.0,42405.0,1.25]
[1642686052420,0.11231477,42423.0,42421.0,0.00125137]
[1642686052617,0.002,42436.0,42423.0,1.25]
[1642686052816,0.002,42436.0,42435.0,0.51275187]
[1642686053112,0.002,42436.0,42435.0,0.3]
[1642686053512,0.5133227,42441.0,42436.0,0.5]
[1642686053513,0.5042227,42441.0,42436.0,0.5]
[1642686053718,0.0933227,42441.0,42436.0,0.5012883]
[1642686053913,0.00056727,42437.0,42436.0,0.74898205]
[1642686054111,0.00056727,42437.0,42436.0,1.02059737]
[1642686055410,0.00056727,42437.0,42436.0,0.74769375]
[1642686056041,0.15056727,42437.0,42436.0,0.74769375]
[1642686056542,0.15056727,42437.0,42433.0,0.29614444]
[1642686056743,0.15056727,42437.0,42431.0,0.11071498]
[1642686056941,0.00055008,42436.0,42431.0,0.11071498]
[1642686057340,0.00053289,42435.0,42431.0,0.11071498]
[1642686057741,0.15,42437.0,42434.0,0.551]
[1642686057945,0.15042996,42435.0,42434.0,0.551]
[1642686058341,0.20042996,42435.0,42434.0,0.551]
[1642686058949,0.25,42435.0,42434.0,0.551]
[1642686059144,0.25,42435.0,42434.0,0.001]
[1642686059594,0.2,42435.0,42434.0,0.001]
[1642686059799,0.00055008,42436.0,42434.0,0.001]
[1642686060101,0.00055008,42436.0,42435.0,0.00126203]
[1642686060297,0.00055008,42436.0,42435.0,1.63215003]
[1642686060500,0.00055008,42436.0,42434.0,0.001]
[1642686060896,0.00053289,42435.0,42434.0,0.001]
[1642686061294,0.00053289,42435.0,42434.0,0.05994164]
[1642686061500,0.00053289,42435.0,42434.0,1.201]
[1642686061894,0.15053289,42435.0,42434.0,1.581888]
[1642686062095,0.20053289,42435.0,42434.0,1.581888]
[1642686062497,0.00053289,42435.0,42434.0,1.64082694]
[1642686063196,0.00042997,42437.0,42435.0,1.308925]
[1642686063456,0.00042997,42437.0,42436.0,1.630888]
[1642686063755,0.151,42441.0,42436.0,1.94810521]
[1642686063956,0.00042998,42438.0,42436.0,2.06595426]
[1642686064354,9.98e-06,42438.0,42437.0,1.5951695]
[1642686064555,1.593e-05,42440.0,42438.0,0.380888]
[1642686064757,0.151,42441.0,42439.0,0.00128677]
[1642686064955,0.151,42441.0,42440.0,0.380888]
[1642686065559,0.151,42441.0,42440.0,0.57625487]
[1642686066062,0.05,42440.0,42436.0,0.11784905]
[1642686066260,0.05,42440.0,42433.0,0.1]
[1642686066458,0.03503948,42439.0,42433.0,0.1]
[1642686066663,0.03503948,42439.0,42435.0,8.595e-05]
[1642686067094,0.13958115,42439.0,42435.0,8.595e-05]
[1642686067298,0.04088393,42437.0,42435.0,8.595e-05]
[1642686067497,0.09088393,42437.0,42435.0,8.595e-05]
[1642686067695,0.10344878,42436.0,42435.0,8.595e-05]
[1642686068097,0.05,42436.0,42435.0,8.595e-05]
[1642686068297,0.10572467,42439.0,42435.0,0.25613791]
[1642686068698,0.10252345,42440.0,42436.0,6.876e-05]
[1642686068898,0.09665664,42439.0,42436.0,6.876e-05]
[1642686069097,0.09745596,42437.0,42436.0,6.876e-05]
[1642686069301,0.09444167,42439.0,42436.0,6.876e-05]
[1642686069497,0.05937739,42440.0,42436.0,6.876e-05]
[1642686069498,0.00042739,42440.0,42436.0,6.876e-05]
[1642686069699,0.24268654,42441.0,42437.0,0.25057367]
[1642686069900,0.05042742,42440.0,42437.0,0.25057367]
[1642686070298,0.14224782,42440.0,42436.0,6.876e-05]
[1642686070948,0.1418204,42440.0,42436.0,6.876e-05]
[1642686071144,0.15,42437.0,42436.0,6.876e-05]
[1642686071351,0.2,42437.0,42436.0,6.876e-05]
[1642686073947,0.25,42437.0,42436.0,6.876e-05]
[1642686075403,0.05121659,42436.0,42421.0,0.00120504]
[1642686075595,0.058968,42432.0,42421.0,0.00120504]
[1642686075794,0.18690311,42429.0,42422.0,0.00024066]
[1642686075993,0.23690311,42429.0,42422.0,0.00024066]
[1642686076197,0.28690311,42429.0,42422.0,0.00024066]
[1642686076593,0.0473,42428.0,42422.0,0.00024066]
[1642686076794,0.06016964,42427.0,42422.0,0.00024066]
[1642686076998,0.0012731,42423.0,42422.0,0.00024066]
[1642686077197,0.0485731,42423.0,42421.0,0.00120494]
[1642686077992,0.0485731,42423.0,42415.0,0.05896868]
[1642686078194,0.34664113,42422.0,42415.0,0.05896868]
[1642686078457,0.0473,42421.0,42420.0,0.00120493]
[1642686078752,0.0473,42421.0,42420.0,0.00147997]
[1642686078753,0.0973,42421.0,42420.0,0.00147997]
[1642686079449,0.0973,42421.0,42420.0,0.00027504]
[1642686079652,0.30678462,42421.0,42420.0,0.00027504]
[1642686079849,0.42474762,42421.0,42419.0,0.00029223]
[1642686080050,0.15,42420.0,42419.0,0.00029223]
[1642686080252,0.256281,42420.0,42419.0,0.00029223]
[1642686080453,0.306281,42420.0,42419.0,0.00029223]
[1642686080653,0.356281,42420.0,42419.0,0.00029223]
[1642686080850,0.356281,42420.0,42417.0,0.00120498]
[1642686081050,0.356281,42420.0,42418.0,0.00030942]
[1642686081051,0.05,42419.0,42418.0,0.00030942]
[1642686081251,0.2,42419.0,42418.0,0.00030942]
[1642686082213,0.05,42419.0,42416.0,0.001205]
[1642686082409,0.05,42419.0,42417.0,0.00032661]
[1642686082608,0.1973,42425.0,42417.0,0.00032661]
[1642686082808,0.15,42418.0,42417.0,0.00032661]
[1642686083010,0.2,42418.0,42417.0,0.00032661]
[1642686083207,0.1473,42425.0,42416.0,0.00154881]
[1642686083409,0.15,42418.0,42417.0,0.00032661]
[1642686084408,0.058972,42424.0,42415.0,0.00156601]
[1642686084608,0.15,42417.0,42416.0,0.0003438]
[1642686085010,0.2,42417.0,42416.0,0.0003438]
[1642686085609,0.2,42417.0,42415.0,0.00036099]
[1642686085848,0.05,42417.0,42416.0,0.001]
[1642686086048,0.15,42417.0,42416.0,0.001]
[1642686086247,0.15,42417.0,42416.0,0.0013438]
[1642686086446,0.2,42417.0,42416.0,0.0013438]
[1642686087352,0.258981,42417.0,42416.0,0.0013438]
[1642686087750,0.2,42417.0,42416.0,0.0013438]
[1642686090694,0.05,42416.0,42411.0,0.11793914]
[1642686091094,0.05,42416.0,42412.0,6.876e-05]
[1642686091496,0.15,42414.0,42412.0,6.876e-05]
[1642686091694,0.25501224,42414.0,42412.0,0.18451904]
[1642686091894,0.15,42414.0,42413.0,0.001]
[1642686092094,0.2,42414.0,42413.0,0.001]
[1642686092897,0.00036172,42422.0,42413.0,0.72461696]
[1642686093099,0.00036172,42422.0,42414.0,0.11792217]
[1642686093348,8.595e-05,42421.0,42419.0,0.19120518]
[1642686093547,8.595e-05,42421.0,42420.0,1.630888]
[1642686093751,0.16061566,42437.0,42429.0,0.51945984]
[1642686094148,0.17658829,42441.0,42429.0,0.51945984]
[1642686094149,0.12044868,42440.0,42429.0,0.51945984]
[1642686094348,0.12044868,42436.0,42429.0,0.51945984]
[1642686094549,0.15,42431.0,42429.0,0.51945984]
[1642686094850,0.00024066,42430.0,42429.0,0.51945984]
[1642686095055,0.00024066,42430.0,42429.0,0.52045984]
[1642686095249,0.00024066,42430.0,42429.0,2.08810571]
[1642686095450,0.00024066,42430.0,42429.0,2.46899371]
[1642686096049,0.05024066,42430.0,42429.0,2.46899371]
[1642686096249,0.04994066,42430.0,42429.0,2.46899371]
[1642686096455,0.04964066,42430.0,42429.0,2.46899371]
[1642686096751,0.00127309,42443.0,42436.0,0.23488502]
[1642686097199,0.00012033,42437.0,42436.0,0.98488502]
[1642686097603,0.00012033,42437.0,42436.0,1.29236299]
[1642686097810,0.00012033,42437.0,42436.0,1.3362355]
[1642686099799,0.00012033,42437.0,42436.0,1.64640316]
[1642686100002,0.00012033,42437.0,42436.0,1.3362355]
[1642686100401,0.00012033,42437.0,42436.0,1.99485963]
[1642686100601,0.15,42439.0,42437.0,1.25]
[1642686100602,0.14512033,42439.0,42437.0,1.25]
[1642686100850,0.14512033,42439.0,42437.0,1.630888]
[1642686101248,0.00042169,42440.0,42437.0,1.630888]
[1642686101450,0.1449,42439.0,42437.0,1.630888]
[1642686102051,0.1449,42439.0,42437.0,1.25]
[1642686102756,0.011,42449.0,42437.0,1.25]
[1642686102949,0.479935,42452.0,42450.0,14.53575587]
[1642686102950,0.421,42452.0,42450.0,14.53575587]
[1642686103150,0.19420481,42451.0,42450.0,14.53575587]
[1642686103350,0.19132959,42451.0,42450.0,14.53575587]
[1642686103958,0.34132959,42451.0,42450.0,14.53575587]
[1642686104150,0.39132959,42451.0,42450.0,14.53575587]
[1642686105198,0.25900677,42451.0,42450.0,14.53575587]
[1642686105404,0.41962243,42451.0,42450.0,14.53575587]
[1642686105598,0.25900677,42451.0,42450.0,14.53575587]
[1642686107009,0.41962243,42451.0,42450.0,14.53575587]
[1642686107397,0.25900677,42451.0,42450.0,14.53508917]
[1642686107597,0.25900677,42451.0,42450.0,14.75810081]
[1642686107804,0.421,42452.0,42451.0,1.25]
[1642686108007,0.421,42452.0,42451.0,0.33837072]
[1642686108198,0.421,42452.0,42450.0,14.78929081]
[1642686108654,0.421,42452.0,42450.0,15.12014768]
[1642686108959,0.421,42452.0,42450.0,14.75810081]
[1642686109155,0.149,42451.0,42450.0,14.75810081]
[1642686109756,0.199,42451.0,42450.0,14.75810081]
[1642686110162,0.199,42451.0,42450.0,14.53508917]
[1642686110360,0.199,42451.0,42450.0,14.53608917]
[1642686113298,0.5463,42451.0,42450.0,14.53608917]
[1642686113695,0.80691566,42451.0,42450.0,14.53608917]
[1642686114496,0.50691566,42451.0,42450.0,14.53608917]
[1642686114699,0.40691566,42451.0,42450.0,14.53608917]
[1642686114897,0.149,42451.0,42450.0,14.53608917]
[1642686116049,0.199,42451.0,42450.0,14.53608917]
[1642686116451,0.35961566,42451.0,42450.0,14.53608917]
[1642686116751,0.199,42451.0,42450.0,14.53608917]
[1642686117149,0.35961566,42451.0,42450.0,14.53608917]
[1642686117553,0.199,42451.0,42450.0,14.53608917]
[1642686118455,0.31941339,42451.0,42450.0,14.53608917]
[1642686122507,0.31941339,42451.0,42450.0,14.53546179]
[1642686122904,0.31941339,42451.0,42450.0,14.77583625]
[1642686123104,0.31941339,42451.0,42450.0,14.53546179]
[1642686123573,0.31885293,42451.0,42450.0,14.53546179]
[1642686124767,0.33185293,42451.0,42450.0,14.53546179]
[1642686124968,0.28185293,42451.0,42450.0,14.53546179]
[1642686126772,0.29685293,42451.0,42450.0,14.53546179]
[1642686127206,0.26885293,42451.0,42450.0,14.53546179]
[1642686128709,0.27485293,42451.0,42450.0,14.53546179]
[1642686130107,0.26885293,42451.0,42450.0,14.53546179]
[1642686130711,0.27485293,42451.0,42450.0,14.53546179]
[1642686131355,0.43546859,42451.0,42450.0,14.53546179]
[1642686131546,0.43546859,42451.0,42450.0,14.44991679]
[1642686131547,0.27485293,42451.0,42450.0,14.44991679]
[1642686131746,0.43546859,42451.0,42450.0,14.44991679]
[1642686131948,0.26885293,42451.0,42450.0,14.44991679]
[1642686132148,0.42946859,42451.0,42450.0,14.44991679]
[1642686132548,0.26885293,42451.0,42450.0,14.44991679]
[1642686132747,0.27585293,42451.0,42450.0,14.44991679]
[1642686132947,0.32585293,42451.0,42450.0,14.44991679]
[1642686133548,0.47315293,42451.0,42450.0,14.44991679]
[1642686133956,0.23432116,42455.0,42454.0,11.66309613]
[1642686134148,0.34056073,42455.0,42454.0,11.66309613]
[1642686134349,0.33982976,42455.0,42454.0,11.66309613]
[1642686134595,0.08982976,42455.0,42454.0,11.66309613]
[1642686134799,0.05336876,42455.0,42454.0,11.66309613]
[1642686134995,0.11230876,42455.0,42454.0,11.66309613]
[1642686135200,0.17124833,42455.0,42454.0,11.66309613]
[1642686135397,0.27114833,42455.0,42454.0,11.66309613]
[1642686136501,0.49073274,42455.0,42454.0,11.66309613]
[1642686136698,0.068936,42459.0,42454.0,11.87333055]
[1642686136901,0.91206709,42459.0,42455.0,0.33027104]
[1642686137103,0.01,42459.0,42455.0,0.33027104]
[1642686137304,0.01,42459.0,42458.0,0.00129008]
[1642686137500,0.01,42459.0,42458.0,0.00123037]
[1642686137701,0.01006876,42459.0,42458.0,1.07055085]
[1642686138759,0.01006876,42459.0,42458.0,1.07061508]
[1642686139256,0.07064876,42459.0,42458.0,1.07061508]
[1642686139461,0.12064876,42459.0,42458.0,1.07061508]
[1642686140256,0.12064876,42459.0,42458.0,1.06932048]
[1642686141058,0.27064876,42459.0,42458.0,0.7]
[1642686141259,0.27064876,42459.0,42458.0,0.69878]
[1642686141663,0.27064876,42459.0,42458.0,1.09878]
[1642686141861,0.27064876,42459.0,42458.0,0.69878]
[1642686143106,0.27064876,42459.0,42458.0,0.99983349]
[1642686143307,0.27064876,42459.0,42458.0,1.00408064]
[1642686143503,0.27064876,42459.0,42458.0,0.69878]
[1642686143705,0.27064876,42459.0,42458.0,1.14878]
[1642686144506,0.27064876,42459.0,42458.0,1.13987273]
[1642686144703,0.27064876,42459.0,42458.0,0.68987273]
[1642686145504,0.27064876,42459.0,42458.0,1.08987273]
[1642686146162,0.27064876,42459.0,42458.0,0.68987273]
[1642686146559,0.27064876,42459.0,42458.0,1.03987273]
[1642686146964,0.27064876,42459.0,42458.0,0.68987273]
[1642686148259,0.27064876,42459.0,42458.0,1.18987273]
[1642686149262,0.39103894,42459.0,42458.0,1.48884576]
[1642686149709,0.39103894,42459.0,42458.0,1.18987273]
[1642686150105,0.39103894,42459.0,42458.0,0.5]
[1642686150308,0.39103894,42459.0,42454.0,11.66309613]